Cogmind - Beta 12 X4 @@@ ROGUE MODE // 2022.09.24 @ 01:06:00 Player: Momo Result: Destroyed by S-27 Virus via exploding Fusion Modulator Performance ------------- Evolutions (5) 2500 Regions Visited (9) 1800 Robots Destroyed (1) 5 Value Destroyed (10) 10 Prototype IDs (1) 20 Alien Tech Used (0) 0 Bonus (545) 545 TOTAL SCORE: 4880 Bonus ------- Follower Combat Kills 45 Entered DSFs 500 Cogmind --------- Core Integrity 0/1000 Matter 13/300 Energy 84/100 System Corruption 1% Temperature Cool (24) Movement Flying (45) Location -5/Factory Parts ------- > --- POWER (1) -------- (None) > --- PROPULSION (7) --- Field Propulsion Drive > --- UTILITY (7) ------ Machine Analyzer Advanced Signal Interpreter Advanced Terrain Scan Processor Advanced Hacking Suite Advanced Hacking Suite > --- WEAPON (2) ------- (None) > --- INVENTORY (5) ---- Airjet Seismic Detector Improved Propulsion Shielding Peak State ------------ > --- POWER ------------ (None) > --- PROPULSION ------- Field Propulsion Drive > --- UTILITY ---------- Machine Analyzer Advanced Signal Interpreter Advanced Terrain Scan Processor Advanced Hacking Suite Advanced Hacking Suite Advanced Hacking Suite Advanced Hacking Suite > --- WEAPON ----------- (None) > --- INVENTORY -------- Airjet Seismic Detector Improved Propulsion Shielding [Rating: 42] Favorites ----------- Power Light Nuclear Core Power Core Light Nuclear Core Propulsion Field Propulsion Drive Flight Unit Field Propulsion Drive Utility Advanced Hacking Suite Device Weight Redist. System Processor Advanced Signal Interpreter Hackware Advanced Hacking Suite Protection Improved Propulsion Shielding Weapon None Build | -11 -10 -9 -8 -7 -6 -6 -6 -6 -5 ------- Run | Scr Mat Mat Mat Fac Fac Was Fac DSF Fac Slots Evolved 10 | . . 2 2 2 2 . . . 2 Power . | . . . . . . . . . . Propulsion 5 | . . 1 1 1 1 . . . 1 Utility 5 | . . 1 1 1 1 . . . 1 Weapon . | . . . . . . . . . . Parts Attached 22 | . . . 3 . 2 . 2 9 6 Power 1 | . . . . . . . . 1 . Engine . | . . . . . . . . . . Core 1 | . . . . . . . . 1 . Reactor . | . . . . . . . . . . Propulsion 3 | . . . . . . . . . 3 Treads . | . . . . . . . . . . Leg . | . . . . . . . . . . Wheel . | . . . . . . . . . . Hover . | . . . . . . . . . . Flight 3 | . . . . . . . . . 3 Utility 18 | . . . 3 . 2 . 2 8 3 Device 5 | . . . 1 . . . 1 3 . Storage . | . . . . . . . . . . Processor 6 | . . . . . 1 . 1 3 1 Hackware 5 | . . . . . 1 . . 2 2 Protection 2 | . . . 2 . . . . . . Artifact . | . . . . . . . . . . Weapon . | . . . . . . . . . . Energy Gun . | . . . . . . . . . . Energy Cannon . | . . . . . . . . . . Ballistic Gun . | . . . . . . . . . . Ballistic Cannon . | . . . . . . . . . . Launcher . | . . . . . . . . . . Special Weapon . | . . . . . . . . . . Impact Weapon . | . . . . . . . . . . Slashing Weapon . | . . . . . . . . . . Piercing Weapon . | . . . . . . . . . . Special Melee Weapon . | . . . . . . . . . . Unidentified Prototypes 1 | . . . . . . . . . 1 Parts Lost 13 | . . . 1 . 1 1 . 3 7 Power 1 | . . . . . . . . . 1 Propulsion 2 | . . . . . . . . . 2 Utility 10 | . . . 1 . 1 1 . 3 4 Weapon . | . . . . . . . . . . Highest Loss Streak 4 | . . . 1 . 1 1 . 3 4 To Critical Strikes . | . . . . . . . . . . Average Slot Usage (%) 18 | . . . 21 . 7 4 6 37 35 Device 3 | . . . 7 . . . 4 13 3 Processor 6 | . . . . . 5 4 2 18 14 Hackware 4 | . . . . . 1 . . 3 13 Protection 2 | . . . 14 . . . . . . Naked Turns 254 | . 34 104 18 60 21 12 5 . . Heaviest Build 10 | . . . 10 . . . 1 6 6 Greatest Support 14 | 3 3 3 9 3 3 3 3 9 14 Greatest Overweight (x) 3 | . . . 3 . . . . . . Average Overweight (x) . | . . . . . . . . . . Largest Inventory Capacity 5 | 5 5 5 5 5 5 5 5 5 5 Average Capacity 5 | 5 5 5 5 5 5 5 5 5 5 Most Carried 5 | . . . 4 5 5 5 5 5 5 Average Carried 3 | . . . 2 4 4 5 5 4 4 Final Capacity 5 | 5 5 5 5 5 5 5 5 5 5 Final Carried 5 | . . . 4 5 5 5 5 5 3 Class Distribution -------------------- 62% | Mutant 31% | Hacker-Mutant 6% | Scout Dominant Class ---------------- Mutant | -10/Materials Mutant | -9/Materials Mutant | -8/Materials Mutant | -7/Factory Mutant | -6/Factory Mutant | -6/Waste Mutant | -6/Factory Scout | -6/DSF Hacker-Mutant | -5/Factory Resources | -11 -10 -9 -8 -7 -6 -6 -6 -6 -5 ----------- Run | Scr Mat Mat Mat Fac Fac Was Fac DSF Fac Matter Collected 26 | . . . 7 . . . . 2 17 Remotely . | . . . . . . . . . . Salvage Created 16 | . 16 . . . . . . . . Parts 1 | . 1 . . . . . . . . Haulers Intercepted . | . . . . . . . . . . Recyclers Shooed . | . . . . . . . . . . Parts Field Recycled . | . . . . . . . . . . Retrieved Matter . | . . . . . . . . . . Parts Self-Destructed . | . . . . . . . . . . Prevented . | . . . . . . . . . . Kills | -11 -10 -9 -8 -7 -6 -6 -6 -6 -5 ------- Run | Scr Mat Mat Mat Fac Fac Was Fac DSF Fac Combat Hostiles Destroyed 1 | . 1 . . . . . . . . Melee 1 | . 1 . . . . . . . . Classes Destroyed 1 | . 1 . . . . . . . . Swarmer 1 | . 1 . . . . . . . . Best Kill Streak 1 | . 1 . . . . . . . . Combat Bots Only 1 | . 1 . . . . . . . . Max Kills in Single Turn 1 | . 1 . . . . . . . . Gunslinging . | . . . . . . . . . . Exploded . | . . . . . . . . . . Melee 1 | . 1 . . . . . . . . Uniques/NPCs Destroyed . | . . . . . . . . . . Combat | -11 -10 -9 -8 -7 -6 -6 -6 -6 -5 -------- Run | Scr Mat Mat Mat Fac Fac Was Fac DSF Fac Damage Taken 3221 | . 112 273 608 17 562 35 . 310 1304 Core 2588 | . 112 273 367 17 541 35 . 228 1015 Absorbed by Shields . | . . . . . . . . . . Core Remaining (%) 53 | 100 55 31 33 97 . . . 5 . Volleys Fired . | . . . . . . . . . . Largest . | . . . . . . . . . . Hottest . | . . . . . . . . . . Shots Fired . | . . . . . . . . . . Gun . | . . . . . . . . . . Cannon . | . . . . . . . . . . Launcher . | . . . . . . . . . . Special . | . . . . . . . . . . Kinetic . | . . . . . . . . . . Thermal . | . . . . . . . . . . Explosive . | . . . . . . . . . . Electromagnetic . | . . . . . . . . . . Robot Hit Streak . | . . . . . . . . . . Robot Miss Streak . | . . . . . . . . . . Penetration Max . | . . . . . . . . . . Secondary Targets . | . . . . . . . . . . Shots Hit Robots . | . . . . . . . . . . Core Hits 6 | . 1 1 . . 3 . . . 1 Critical Kills . | . . . . . . . . . . Critical Parts Destroyed . | . . . . . . . . . . Critical Strikes . | . . . . . . . . . . Melee Attacks . | . . . . . . . . . . Impact . | . . . . . . . . . . Slashing . | . . . . . . . . . . Piercing . | . . . . . . . . . . Sneak Attacks . | . . . . . . . . . . Combat Hostiles . | . . . . . . . . . . Follow-up Attacks . | . . . . . . . . . . Damage Inflicted 100 | . 9 20 11 . 21 . . . 39 Guns . | . . . . . . . . . . Cannons . | . . . . . . . . . . Explosions . | . . . . . . . . . . Melee . | . . . . . . . . . . Ramming 100 | . 9 20 11 . 21 . . . 39 Kinetic . | . . . . . . . . . . Thermal . | . . . . . . . . . . Explosive . | . . . . . . . . . . Electromagnetic . | . . . . . . . . . . Impact . | . . . . . . . . . . Slashing . | . . . . . . . . . . Piercing . | . . . . . . . . . . Highest Corruption 5 | . 2 . . . 5 5 5 5 1 Average Corruption 2 | . 2 . . . 3 5 5 5 1 Corruption Purged . | . . . . . . . . . . Corruption Blocked . | . . . . . . . . . . Effects 8 | . 1 . . . 3 . 1 . 3 Message Errors 2 | . . . . . 1 . 1 . . Matter Fused 3 | . 1 . . . 1 . . . 1 Heat Flow Errors 2 | . . . . . 1 . . . 1 Data Loss (minor) 1 | . . . . . . . . . 1 Overload Shots . | . . . . . . . . . . Overflow Damage . | . . . . . . . . . . Projectiles . | . . . . . . . . . . Explosions . | . . . . . . . . . . Melee . | . . . . . . . . . . Knockbacks 1 | . . . . . . . . . 1 Impact 1 | . . . . . . . . . 1 Kinetic . | . . . . . . . . . . Secondary . | . . . . . . . . . . Self-Inflicted Damage 47 | . 4 10 5 . 10 . . . 18 Shots . | . . . . . . . . . . Rammed 20 | . 1 4 1 . 6 . . . 8 Targets Rammed 20 | . 1 4 1 . 6 . . . 8 Kicked . | . . . . . . . . . . Crushed . | . . . . . . . . . . Highest Temperature 251 | . . . . . 251 . . . 248 Average Temperature 134 | . . . . . 140 . . . 128 Received Heat Transfer 507 | . 18 144 36 6 132 . . . 171 Siege Activations . | . . . . . . . . . . Robots Corrupted . | . . . . . . . . . . Combat Hostiles . | . . . . . . . . . . Parts Fried . | . . . . . . . . . . Impact Corruptions . | . . . . . . . . . . Robots Melted . | . . . . . . . . . . Combat Hostiles . | . . . . . . . . . . Parts Melted . | . . . . . . . . . . Heat Transferred . | . . . . . . . . . . Parts Sabotaged . | . . . . . . . . . . Parts Stolen . | . . . . . . . . . . Parts Stripped . | . . . . . . . . . . Power Chain Reactions 1 | . . . . . 1 . . . . Missiles Intercepted . | . . . . . . . . . . Alert | -11 -10 -9 -8 -7 -6 -6 -6 -6 -5 ------- Run | Scr Mat Mat Mat Fac Fac Was Fac DSF Fac Peak Influence 459 | . 75 182 121 65 280 113 72 53 459 Initial 98 | . . 39 76 50 31 98 72 53 11 Average 135 | . 28 81 89 56 156 104 72 43 228 Maximum Alert Level 2 | . . . . . 1 . . . 2 Low Security (%) 78 | 100 100 100 100 100 58 100 100 100 54 Level 1 15 | . . . . . 41 . . . 25 Level 2 6 | . . . . . . . . . 20 Level 3 . | . . . . . . . . . . Level 4 . | . . . . . . . . . . Level 5 . | . . . . . . . . . . High Security . | . . . . . . . . . . Max Security . | . . . . . . . . . . Squads Dispatched 9 | . 1 1 . . 2 . . . 5 Investigation 4 | . . . . . 2 . . . 2 Extermination . | . . . . . . . . . . Reinforcement 5 | . 1 1 . . . . . . 3 Assault . | . . . . . . . . . . Garrison . | . . . . . . . . . . Intercept . | . . . . . . . . . . Searches Triggered . | . . . . . . . . . . Construction Impeded . | . . . . . . . . . . Haulers Reinforced 2 | . . . . . . . . . 2 Active Scanning Responses . | . . . . . . . . . . Cargo Convoy Interrupts . | . . . . . . . . . . Stealth | -11 -10 -9 -8 -7 -6 -6 -6 -6 -5 --------- Run | Scr Mat Mat Mat Fac Fac Was Fac DSF Fac Distress Signals 3 | . 1 . 2 . . . . . . Communications Jammed . | . . . . . . . . . . Distress Signals . | . . . . . . . . . . Times Spotted 93 | . 9 11 14 1 16 3 . 1 38 Peak Tracking Total 13 | . 10 8 13 1 6 3 . 1 13 Tactical Retreats 13 | . 1 2 . . 2 . . . 8 Traps | -11 -10 -9 -8 -7 -6 -6 -6 -6 -5 ------- Run | Scr Mat Mat Mat Fac Fac Was Fac DSF Fac Traps Triggered 3 | . 1 . . . 1 . . . 1 Indirectly . | . . . . . . . . . . Trap Hack Attempts . | . . . . . . . . . . Triggered . | . . . . . . . . . . Disarmed . | . . . . . . . . . . Reprogrammed . | . . . . . . . . . . Reused . | . . . . . . . . . . Traps Extracted . | . . . . . . . . . . Installed . | . . . . . . . . . . Triggered . | . . . . . . . . . . Machines | -11 -10 -9 -8 -7 -6 -6 -6 -6 -5 ---------- Run | Scr Mat Mat Mat Fac Fac Was Fac DSF Fac Machines Disabled . | . . . . . . . . . . Max in Single Turn . | . . . . . . . . . . Machines Sabotaged . | . . . . . . . . . . Overloaded Fab Kills 1 | . . . . . 1 . . . . Hacking | -11 -10 -9 -8 -7 -6 -6 -6 -6 -5 --------- Run | Scr Mat Mat Mat Fac Fac Was Fac DSF Fac Machines Accessed 11 | . . 1 1 . 4 . 1 . 4 Terminals 8 | . . 1 1 . 2 . 1 . 3 Fabricators 3 | . . . . . 2 . . . 1 Repair Stations . | . . . . . . . . . . Recycling Units . | . . . . . . . . . . Scanalyzers . | . . . . . . . . . . Garrison Access . | . . . . . . . . . . Total Hacks 22 | . . 4 4 . 6 . 2 . 6 Successful 10 | . . 1 . . 5 . 1 . 3 Failed 12 | . . 3 4 . 1 . 1 . 3 Catastrophic 1 | . . 1 . . . . . . . Database Lockouts . | . . . . . . . . . . Manual 12 | . . 4 . . 3 . . . 5 Terminals 19 | . . 4 4 . 4 . 2 . 5 Fabricators 3 | . . . . . 2 . . . 1 Repair Stations . | . . . . . . . . . . Recycling Units . | . . . . . . . . . . Scanalyzers . | . . . . . . . . . . Garrison Access . | . . . . . . . . . . Terminal Hacks 6 | . . 1 . . 2 . 1 . 2 Open DSF 3 | . . . . . 1 . 1 . 1 Level Access Points 1 | . . . . . . . . . 1 Branch Access Points 1 | . . 1 . . . . . . . Locate Traps 1 | . . . . . 1 . . . . Fabricator Hacks . | . . . . . . . . . . Repair Station Hacks . | . . . . . . . . . . Recycling Unit Hacks . | . . . . . . . . . . Scanalyzer . | . . . . . . . . . . Garrison Access Hacks . | . . . . . . . . . . Unauthorized Hacks 4 | . . . . . 3 . . . 1 Terminals 1 | . . . . . 1 . . . . Botnet 1 | . . . . . 1 . . . . Fabricators 3 | . . . . . 2 . . . 1 Overload 3 | . . . . . 2 . . . 1 Repair Stations . | . . . . . . . . . . Recycling Units . | . . . . . . . . . . Scanalyzers . | . . . . . . . . . . Garrison Access . | . . . . . . . . . . Data Cores Recovered . | . . . . . . . . . . Used . | . . . . . . . . . . Hacking Detections 6 | . . 1 1 . 1 . . . 3 Full Trace Events . | . . . . . . . . . . Feedback Events . | . . . . . . . . . . Feedback Blocked . | . . . . . . . . . . Robot Schematics Acquired . | . . . . . . . . . . Robots Built . | . . . . . . . . . . Authchips . | . . . . . . . . . . Time . | . . . . . . . . . . Total Robot Build Rating . | . . . . . . . . . . Part Schematics Acquired . | . . . . . . . . . . Parts Built . | . . . . . . . . . . Authchips . | . . . . . . . . . . Time . | . . . . . . . . . . Total Part Build Rating . | . . . . . . . . . . Parts Repaired . | . . . . . . . . . . Time . | . . . . . . . . . . Parts Recycled . | . . . . . . . . . . Recycled Matter . | . . . . . . . . . . Retrieved Matter . | . . . . . . . . . . Retrieved Components . | . . . . . . . . . . Parts Scanalyzed . | . . . . . . . . . . Part Schematics Acquired . | . . . . . . . . . . Parts Damaged . | . . . . . . . . . . Bothacking | -11 -10 -9 -8 -7 -6 -6 -6 -6 -5 ------------ Run | Scr Mat Mat Mat Fac Fac Was Fac DSF Fac Used RIF Installer . | . . . . . . . . . . Robots Hacked . | . . . . . . . . . . Non-combat . | . . . . . . . . . . Combat . | . . . . . . . . . . Robot Hacks Applied . | . . . . . . . . . . Relay Couplers Released . | . . . . . . . . . . Fabnet Peak Effective % . | . . . . . . . . . . Robots Rewired 2 | . . . . . 2 . . . . Allies Hacked 1 | . . . . . 1 . . . . Hacks Repelled . | . . . . . . . . . . Allies | -11 -10 -9 -8 -7 -6 -6 -6 -6 -5 -------- Run | Scr Mat Mat Mat Fac Fac Was Fac DSF Fac Total Allies 2 | . . . . . 2 . . . . Largest Group 1 | . . . . . 1 . . . . Highest-Rated Group 34 | . . . . . 34 . . . . Highest-Rated Ally 34 | . . . . . 34 . . . . Total Orders . | . . . . . . . . . . Ally Attacks 3 | . . . . . 3 . . . . Total Damage 144 | . . . . . 144 . . . . Kills 2 | . . . . . 2 . . . . Allies Corrupted . | . . . . . . . . . . Allies Melted . | . . . . . . . . . . Intel | -11 -10 -9 -8 -7 -6 -6 -6 -6 -5 ------- Run | Scr Mat Mat Mat Fac Fac Was Fac DSF Fac Robot Analysis Total . | . . . . . . . . . . Derelict Logs Recovered . | . . . . . . . . . . Drone Launches . | . . . . . . . . . . Drone Recoveries . | . . . . . . . . . . Exploration | -11 -10 -9 -8 -7 -6 -6 -6 -6 -5 ------------- Run | Scr Mat Mat Mat Fac Fac Was Fac DSF Fac Turns Passed 929 | 9 34 104 132 60 187 39 32 55 277 Spaces Moved 1620 | 18 66 199 139 117 331 77 57 72 544 Core 1438 | 18 66 199 139 117 331 77 57 72 362 Treads . | . . . . . . . . . . Legs . | . . . . . . . . . . Wheels . | . . . . . . . . . . Hover . | . . . . . . . . . . Flight 182 | . . . . . . . . . 182 Fastest Speed 35 | 50 50 50 50 50 50 50 50 50 35 Average Speed 52 | 50 50 50 87 50 50 50 50 50 46 Slowest Speed 200 | 50 50 50 200 50 50 50 50 50 50 Overloaded Moves . | . . . . . . . . . . Propulsion Burnouts . | . . . . . . . . . . Robots Hopped 3 | . . . . . . . . . 3 Cave-ins Triggered . | . . . . . . . . . . Exploration Rate (%) 27 | 3 21 29 20 4 17 73 3 88 21 Regions Visited 9 Branch Regions . Pre-discovered Areas . | . . . . . . . . . . Known Exits Taken 1 | . . . . . . . 1 . . Unknown Exits Taken 5 | 1 1 1 1 1 . . . . . Scrap Searched . | . . . . . . . . . . Spaces Dug . | . . . . . . . . . . Terrain Destroyed . | . . . . . . . . . . Melee . | . . . . . . . . . . Projectile . | . . . . . . . . . . AOE . | . . . . . . . . . . Terrain Rammed . | . . . . . . . . . . Walls Destroyed . | . . . . . . . . . . Machines Disabled . | . . . . . . . . . . Actions | -11 -10 -9 -8 -7 -6 -6 -6 -6 -5 --------- Run | Scr Mat Mat Mat Fac Fac Was Fac DSF Fac Total 1682 | 17 66 202 147 117 352 76 58 87 560 Wait 10 | . . . . . . . . 5 5 Move 1607 | 17 66 198 138 116 331 76 56 71 538 Hop 3 | . . . . . . . . . 3 Pick Up 7 | . . . 3 1 1 . . 2 . Fast Attach 16 | . . . 3 . 1 . 2 6 4 Attach 5 | . . . . . 1 . . 2 2 Detach 1 | . . . 1 . . . . . . Swap 1 | . . . . . . . . 1 . Drop 1 | . . . 1 . . . . . . Fire . | . . . . . . . . . . Melee . | . . . . . . . . . . Ram 19 | . . 4 1 . 6 . . . 8 Kick . | . . . . . . . . . . Crush . | . . . . . . . . . . Escape Stasis . | . . . . . . . . . . Rewire 12 | . . . . . 12 . . . . Trap . | . . . . . . . . . . Miscellaneous . | . . . . . . . . . . Route ------- -11/Scrapyard -10/Materials -9/Materials (discovered 2 exits: *Mat / *Min) -8/Materials -7/Factory -6/Factory -6/Waste -6/Factory -6/DSF -5/Factory (discovered 5 exits: Fac x4 / *Upp) History --------- Turn | Location | Event 3 | -11/Scrapyard | Discovered new exit (range 15) 10 | -11/Scrapyard | Entered Materials 40 | -10/Materials | Discovered new exit (range 8) 44 | -10/Materials | Entered another Materials area 44 | -9/Materials | Evolved 2 slots: Propulsion x1, Utility x1 76 | -9/Materials | Identified exit to Mines 117 | -9/Materials | Core integrity fell below 50% 142 | -9/Materials | Discovered new exit (range 13) 148 | -9/Materials | Entered another Materials area 148 | -8/Materials | Evolved 2 slots: Propulsion x1, Utility x1 272 | -8/Materials | Core integrity fell below 50% 272 | -8/Materials | Discovered new exit (range 15) 280 | -8/Materials | Entered Factory 280 | -7/Factory | Evolved 2 slots: Propulsion x1, Utility x1 305 | -7/Factory | Build established: Mutant 336 | -7/Factory | Discovered new exit (range 7) 340 | -7/Factory | Entered another Factory area 340 | -6/Factory | Evolved 2 slots: Propulsion x1, Utility x1 407 | -6/Factory | Spotted B-75 Beast 484 | -6/Factory | Core integrity fell below 50% 527 | -6/Factory | Sucked down chute 527 | -6/Factory | Entered Waste 541 | -6/Waste | Spotted C-40 Crusher 547 | -6/Waste | Spotted C-40 Crusher 549 | -6/Waste | Spotted C-40 Crusher 549 | -6/Waste | Spotted C-40 Crusher 554 | -6/Waste | Crushed by Compactor (1 part destroyed) 560 | -6/Waste | Discovered new exit (range 11) 566 | -6/Waste | Entered Factory 598 | -6/Factory | Identified exit to DSF 598 | -6/Factory | Entered DSF 639 | -6/DSF | Additional patrols routed to DSF 643 | -6/DSF | Core integrity fell below 20% 647 | -6/DSF | Discovered new exit (range 14) 653 | -6/DSF | Identified exit to Factory 653 | -6/DSF | Entered Factory 653 | -5/Factory | Evolved 2 slots: Propulsion x1, Utility x1 701 | -5/Factory | Lost 4 parts (1p3u) 745 | -5/Factory | Discovered new exit (range 11) 753 | -5/Factory | Identified exit to Upper Caves 803 | -5/Factory | Spotted B-75 Beast 829 | -5/Factory | Core integrity fell below 50% 877 | -5/Factory | Identified exit to Factory 930 | -5/Factory | Destroyed by S-27 Virus via exploding Fusion Modulator Last Messages --------------- 00873_ Acquired Field Propulsion Drive. 00875_ Connecting with Terminal... >>Access(Main) Found 4 level access points to Factory: (15,158) (10,67) (111,175) (134,181) Map updated. 00891_ Drone sends a signal. 00902_ Slug penetrates Wall. 00905_ Slug penetrates Subcomponent Replicator. 00923_ Penetrated by Slug. 00923_ Adv. Hacking Suite destroyed. 00923_ Slug penetrates Wall. 00928_ Acquired Field Propulsion Drive. 00930_ Fusion Modulator explodes. 00930_ Field Propulsion Drive destroyed. 00930_ Fusion Modulator explodes. 00930_ Adv. Hacking Suite destroyed. Map ----- +----------------------------------------------------+ | ??????????# ! / !#???""R"?# + | | ??????????###############?? ""?"?# """"" # ###### | | ?????????# ???# # """"" !# #????? | | ?????????# #?# """""" # """ # #????? | | ?????????# #?# """""" # # #?"""? | | ######???# #?# """""" #######+## #?"""? | | ! ???# #?# """""" ??????# #?"""? | | ??# #??? ????????# #????? | | """"# ######+########### #????? | | !! """"# + #????? | | ! """"# ??###### ################????? | | """"# ?????????# #???????????????????? | | # ???????????# #??"?"?"?"?T????????? | | ?? ??# ?????????????# #??" "?"?"??????????? | | ####+######+################ #??" " " "??????????? | | #? " " " "??????????? | | # " " " "??????? ??? | | + " " " "??????? ??? | | # " " " "??????? ??? | | huh/ " " " "??????? ??? | | ###/###############;;;;;s;;;# " " " "??????? #?? | | # ????????????# # ??????? #?? | | #?"""?"""??????# ; ?? ????? #?? | | #?"""?"""??????# ;#?????#+###????# #?? | | #?"""?"""??????# ;#??????????????# ### | | #??""??""??????# @ ;#??????????????# # = | | #??""??""??????# ;#?????# ######## # | | ##??????????????# s ##?????? # | | ????????????????# #?????????# # | | ????????######### #?????????# """ # | | ????????# ## #?????????+ """ + | | ????????# """ ## s #??????"""# """ # | | ????????# """ ## #??????"""# # | | ????????# """ ####+##########??????"""# ### | | ????????# "" #??# #??????????????????# """ # | | ######### "" #??# #??????????????????# """ + | | # #??# #??????????????????# F" [ # | | # #??# #??????????????????# "" # | | # #### #################### # | | # / + | | # #### ##########################+### | | # #??# #???????????????????????# | | ^ ###/####??# #???????????????????????# | | #??# #???????????????????????# """ | | #### ##??????????????????????# """ | | == #????""""??????????????# """ | | = #????""""??????????????# "" | | #????""""??????????????# "" | | ### #????""""??????????????# ? | | ??# ! ! """ #????""""??????????????####?# | +----------------------------------------------------+ Best States ------------- Heat Dissipation 40 Energy Generation 14 Energy Capacity 160 Matter Stores 107 Matter Capacity 300 Sight Range 16 Robot Scan Range 16 Terrain Scan Range 20 Terrain Scan Density 510 Additional Mass Support 6 Armor Coverage 225 Propulsion Shielding 66 Evasion (%) 63 Offensive Hacking 56 Defensive Hacking 10 Item Schematics ----------------- None Robot Schematics ------------------ None Fabricated ------------ Nothing Alien Tech Used ----------------- None Achievements -------------- None Challenges ------------ None Game ------ Seed SeismicSniperCutter Manual? 0 Play Time 00:24:39 Cumulative 382.3 hours Start 2022.09.24 @ 00:36:55 End 2022.09.24 @ 01:06:00 Sessions 1 Manual Loads 0 Difficulty Rogue Special Mode None Game No. 177 Rogue 173 Adventurer 0 Explorer 4 Win Type - Total 22 Types 7/1/2/4/1/2/3/1/1 Lore% 84 Gallery% 88 Achievement% 79 Wizard Run 0 Options --------- ASCII 0 Keyboard 0 Movement Mouse Keybinds 0 Fullscreen 1 Font 18/SmallcapsGlow Map View 76x50 Tactical HUD 1 Map Filters NONE Filters NONE Steam 1 RUN: c93a75f6-6933-425a-967d-0ab3e62c7bff